fUST/lending_fUST_20250817
["ID","MTS","AMOUNT","RATE_DAILY","PERIOD"]
[379814253,1755417044008,-457.861898,0.00020869,2]
[379814255,1755417044018,-457.861898,0.00020869,2]
[379814256,1755417044027,-980.628,0.00020894,2]
[379814258,1755417044037,-2153.0,0.00020894,2]
[379814260,1755417044046,-637.0,0.00020894,2]
[379814262,1755417044057,-675.67,0.00020895,2]
[379814264,1755417044066,-480.0,0.00020895,2]
[379814266,1755417044076,-480.0,0.00020895,2]
[379814268,1755417044086,-480.0,0.00020895,2]
[379814270,1755417044095,-480.0,0.00020895,2]
[379814272,1755417044104,-480.0,0.00020895,2]
[379814274,1755417044114,-203.97,0.000209,2]
[379814276,1755417044123,-177.0,0.00020906,2]
[379814278,1755417044133,-615.2,0.00020919,3]
[379814280,1755417044143,-161.05898372,0.00020932,2]
[379814282,1755417044152,-160.29709834,0.00020932,2]
[379814284,1755417044161,-160.0,0.00020961,5]
[379814286,1755417044173,-264.6949907,0.00020962,2]
[379814288,1755417044182,-153.0,0.00020962,2]
[379814290,1755417044191,-153.0,0.00020962,2]
[379814292,1755417044200,-152.399952,0.00020974,2]
[379814294,1755417044209,-151.0,0.00020974,2]
[379814295,1755417044218,-166.0,0.00020974,2]
[379814297,1755417044229,-1762.0,0.00020974,2]
[379814299,1755417044239,-1762.0,0.00020974,2]
[379814300,1755417044252,-1762.0,0.00020974,2]
[379814301,1755417044261,-1762.0,0.00020974,2]
[379814302,1755417044270,-1762.0,0.00020974,2]
[379814303,1755417044279,-1762.0,0.00020974,2]
[379814304,1755417044290,-1762.0,0.00020974,2]
[379814305,1755417044299,-1762.0,0.00020974,2]
[379814306,1755417044308,-1762.0,0.00020974,2]
[379814307,1755417044318,-1762.0,0.00020974,2]
[379814308,1755417044327,-1762.0,0.00020974,2]
[379814309,1755417044336,-1762.0,0.00020974,2]
[379814310,1755417044345,-1762.0,0.00020974,2]
[379814311,1755417044355,-1762.0,0.00020974,2]
[379814312,1755417044364,-1762.0,0.00020974,2]
[379814313,1755417044373,-1762.0,0.00020974,2]
[379814314,1755417044382,-1762.0,0.00020974,2]
[379814315,1755417044391,-1762.0,0.00020974,2]
[379814316,1755417044400,-1762.0,0.00020974,2]
[379814317,1755417044410,-1762.0,0.00020974,2]
[379814318,1755417044419,-1762.0,0.00020974,2]
[379814319,1755417044428,-1762.0,0.00020974,2]
[379814320,1755417044437,-1762.0,0.00020974,2]
[379814321,1755417044446,-1762.0,0.00020974,2]
[379814322,1755417044455,-1762.0,0.00020974,2]
[379814323,1755417044464,-1762.0,0.00020974,2]
[379814324,1755417044474,-1762.0,0.00020974,2]
[379814325,1755417044483,-1762.0,0.00020974,2]
[379814326,1755417044492,-1762.0,0.00020974,2]
[379814327,1755417044502,-1762.0,0.00020974,2]
[379814328,1755417044511,-1762.0,0.00020974,2]
[379814329,1755417044520,-1532.77950501,0.00020974,2]
[379814330,1755417044529,-326.0,0.00020974,2]
[379814331,1755417044539,-326.0,0.00020974,2]
[379814332,1755417044548,-326.0,0.00020974,2]
[379814343,1755417044693,-326.0,0.00020974,2]
[379814345,1755417044702,-326.0,0.00020974,2]
[379814347,1755417044711,-326.0,0.00020974,2]
[379814349,1755417044720,-326.0,0.00020974,2]
[379814351,1755417044729,-326.0,0.00020974,2]
[379814353,1755417044739,-326.0,0.00020974,2]
[379814355,1755417044749,-326.0,0.00020974,2]
[379814357,1755417044758,-326.0,0.00020974,2]
[379814359,1755417044768,-326.0,0.00020974,2]
[379814361,1755417044777,-326.0,0.00020974,2]
[379814363,1755417044787,-326.0,0.00020974,2]
[379814365,1755417044796,-326.0,0.00020974,2]
[379814367,1755417044805,-326.0,0.00020974,2]
[379814369,1755417044814,-326.0,0.00020974,2]
[379814371,1755417044823,-326.0,0.00020974,2]
[379814373,1755417044832,-326.0,0.00020974,2]
[379814375,1755417044842,-326.0,0.00020974,2]
[379814377,1755417044851,-276.98896011,0.00020974,2]
[379814379,1755417044860,-1762.0,0.00020974,2]
[379814381,1755417044869,-160.0,0.00020976,2]
[379814383,1755417044878,-480.0,0.00020979,2]
[379814385,1755417044887,-693.73,0.00020979,2]
[379814387,1755417044895,-480.0,0.00020979,2]
[379814389,1755417044904,-480.0,0.00020979,2]
[379814391,1755417044913,-480.0,0.00020979,2]
[379814393,1755417044922,-480.0,0.00020979,2]
[379814394,1755417044931,-480.0,0.00020979,2]
[379814396,1755417044940,-480.0,0.00020979,2]
[379814399,1755417044949,-858.59,0.00020979,2]
[379814400,1755417044959,-480.0,0.00020979,2]
[379814403,1755417044968,-151.0,0.00020979,2]
[379814405,1755417044977,-253.46814,0.00020979,2]
[379814406,1755417044987,-549.27,0.00020979,2]
[379814409,1755417044996,-480.0,0.00020979,2]
[379814410,1755417045005,-480.0,0.00020979,2]
[379814413,1755417045014,-151.0,0.00020979,2]
[379814414,1755417045024,-151.0,0.00020979,2]
[379814416,1755417045033,-151.0,0.00020979,2]
[379814418,1755417045043,-152.197988,0.00020979,2]
[379814420,1755417045053,-480.0,0.00020979,2]
[379814422,1755417045063,-151.0,0.00020979,2]
[379814424,1755417045074,-979.61,0.00020979,2]
[379814426,1755417045084,-151.0,0.00020979,2]
[379814428,1755417045094,-6792.97,0.00020979,2]
[379814430,1755417045103,-151.0,0.00020979,2]
[379814432,1755417045112,-4776.72,0.00020979,2]
[379814434,1755417045121,-151.0,0.0002098,2]
[379814436,1755417045130,-151.0,0.0002098,2]
[379814438,1755417045139,-480.0,0.0002098,2]
[379814440,1755417045149,-151.0,0.0002098,2]
[379814442,1755417045159,-721.26,0.0002098,2]
[379814444,1755417045168,-480.0,0.0002098,2]
[379814446,1755417045177,-440.08683214,0.0002098,2]
[379814448,1755417045186,-531.735481,0.0002098,2]
[379814450,1755417045196,-531.735481,0.0002098,2]
[379814452,1755417045205,-259.753943,0.0002098,2]
[379814454,1755417045214,-1426.33,0.0002098,2]
[379814456,1755417045223,-480.0,0.0002098,2]
[379814458,1755417045232,-480.0,0.0002098,2]
[379814460,1755417045247,-480.0,0.0002098,2]
[379814462,1755417045256,-151.0,0.0002098,2]
[379814464,1755417045265,-151.0,0.0002098,2]
[379814466,1755417045275,-151.0,0.0002098,2]
[379814468,1755417045284,-1107.58,0.0002098,2]
[379814470,1755417045293,-480.0,0.00020981,2]
[379814472,1755417045303,-457.861898,0.0002099,2]
[379814474,1755417045312,-457.861898,0.0002099,2]
[379814476,1755417045321,-151.0,0.00020997,2]
[379814478,1755417045331,-151.0,0.00020997,2]
[379814480,1755417045340,-151.0,0.00020997,2]
[379814482,1755417045350,-500.0,0.00020997,2]
[379814484,1755417045359,-151.0,0.00020997,2]
[379814486,1755417045368,-500.0,0.00020997,2]
[379814488,1755417045377,-500.0,0.00020997,2]
[379814490,1755417045387,-500.0,0.00020997,2]
[379814492,1755417045396,-151.0,0.00020997,2]
[379814494,1755417045405,-151.0,0.00020997,2]
[379814496,1755417045415,-151.0,0.00020997,2]
[379814498,1755417045424,-151.0,0.00020997,2]
[379814500,1755417045433,-500.0,0.00020997,2]
[379814502,1755417045442,-208.24960438,0.00020997,2]
[379814504,1755417045451,-1530.0,0.00020997,2]
[379814505,1755417045461,-500.0,0.00020997,2]
[379814507,1755417045471,-500.0,0.00020997,2]
[379814509,1755417045480,-201.65566068,0.00020997,2]
[379814511,1755417045489,-500.0,0.00020997,2]
[379814513,1755417045498,-151.0,0.00020997,2]
[379814515,1755417045507,-151.2569465,0.00020997,2]
[379814517,1755417045516,-151.0,0.00020997,2]
[379814519,1755417045525,-151.0,0.00020997,2]
[379814521,1755417045534,-151.0,0.00020997,2]
[379814523,1755417045543,-151.0,0.00020997,2]
[379814525,1755417045552,-500.0,0.00020997,2]
[379814527,1755417045561,-152.69671986,0.00020997,2]
[379814529,1755417045571,-151.0,0.00020997,2]
[379814531,1755417045580,-151.0,0.00020997,2]
[379814533,1755417045590,-151.0,0.00020997,2]
[379814535,1755417045599,-151.0,0.00020997,2]
[379814537,1755417045608,-151.0,0.00020997,2]
[379814539,1755417045617,-151.0,0.00020997,2]
[379814541,1755417045626,-151.0,0.00020997,2]
[379814543,1755417045635,-500.0,0.00020997,2]
[379814545,1755417045647,-151.0,0.00020997,2]
[379814547,1755417045657,-189.19364358,0.00020997,2]
[379814549,1755417045666,-151.0,0.00020997,2]
[379814551,1755417045676,-151.0,0.00020997,2]
[379814553,1755417045685,-500.0,0.00020997,2]
[379814555,1755417045695,-500.0,0.00020997,2]
[379814557,1755417045704,-151.0,0.00020997,2]
[379814559,1755417045713,-151.0,0.00020997,2]
[379814561,1755417045723,-208.3078323,0.00021,2]
[379814563,1755417045733,-645.0,0.00021,2]
[379814565,1755417045742,-1000.0,0.00021021,2]
[379814566,1755417045752,-467.71303548,0.00021021,2]
[379814568,1755417045761,-1000.0,0.00021021,2]
[379814569,1755417045770,-500.0,0.00021021,2]
[379814571,1755417045779,-1000.0,0.00021021,2]
[379814573,1755417045788,-1097.5264365,0.00021021,2]
[379814575,1755417045797,-1005.99178589,0.00021021,2]
[379814577,1755417045806,-1000.0,0.00021021,2]
[379814579,1755417045815,-501.0519514,0.00021021,2]
[379814581,1755417045824,-505.16592493,0.00021021,2]
[379814583,1755417045833,-1000.0,0.00021021,2]
[379814585,1755417045843,-1000.0,0.00021021,2]
[379814587,1755417045852,-500.0,0.00021021,2]
[379814589,1755417045861,-500.0,0.00021021,2]
[379814591,1755417045871,-1000.0,0.00021021,2]
[379814593,1755417045881,-1000.0,0.00021021,2]
[379814595,1755417045890,-828.48181476,0.00021021,2]
[379814609,1755417046021,-171.51818524,0.00021021,2]
[379814611,1755417046030,-366.03790738,0.00021021,2]
[379814613,1755417046039,-501.42710142,0.00021021,2]
[379814615,1755417046048,-1000.0,0.00021021,2]
[379814617,1755417046058,-1000.0,0.00021021,2]
[379814619,1755417046069,-1010.51801605,0.00021021,2]
[379814621,1755417046078,-1000.0,0.00021021,2]
[379814623,1755417046087,-1000.0,0.00021021,2]
[379814625,1755417046095,-744.14823957,0.00021021,2]
[379814627,1755417046105,-1002.53093704,0.00021021,2]
[379814629,1755417046114,-1000.0,0.00021021,2]
[379814631,1755417046123,-502.19094867,0.00021021,2]
[379814633,1755417046132,-1000.0,0.00021021,2]
[379814635,1755417046141,-1000.0,0.00021021,2]
[379814636,1755417046151,-502.22440403,0.00021021,2]
[379814638,1755417046159,-1000.0,0.00021021,2]
[379814640,1755417046168,-1000.0,0.00021021,2]
[379814642,1755417046178,-1000.0,0.00021021,2]
[379814644,1755417046187,-1000.0,0.00021021,2]
[379814646,1755417046196,-1009.20098511,0.00021021,2]
[379814648,1755417046205,-509.34740651,0.00021021,2]
[379814650,1755417046215,-500.0,0.00021021,2]
[379814652,1755417046224,-615.2,0.00021052,3]
[379814654,1755417046233,-5130.57016129,0.00021057,2]
[379814656,1755417046244,-151.0,0.00021057,2]
[379814658,1755417046254,-500.80032938,0.00021057,2]
[379814660,1755417046263,-529.07721688,0.00021057,2]
[379814662,1755417046278,-500.0,0.00021057,2]
[379814664,1755417046308,-501.62294685,0.00021057,2]
[379814667,1755417046347,-500.0,0.00021057,2]
[379814669,1755417046364,-500.0,0.00021057,2]
[379814671,1755417046373,-480.0,0.00021067,2]
[379814673,1755417046384,-1354.16,0.00021067,2]
[379814675,1755417046394,-517.81,0.00021068,2]
[379814677,1755417046403,-937.92,0.00021068,2]
[379814679,1755417046412,-480.0,0.00021068,2]
[379814681,1755417046421,-1058.44,0.00021068,2]
[379814683,1755417046431,-518.87,0.00021068,2]
[379814685,1755417046440,-480.0,0.00021068,2]
[379814687,1755417046450,-480.0,0.00021068,2]
[379814689,1755417046459,-480.0,0.00021068,2]
[379814691,1755417046468,-480.0,0.00021068,2]
[379814693,1755417046477,-1819.37,0.00021068,2]
[379814695,1755417046486,-518.63,0.00021068,2]
[379814697,1755417046495,-986.05,0.00021068,2]
[379814698,1755417046504,-582.95,0.00021068,2]
[379814700,1755417046514,-1570.11,0.00021068,2]
[379814702,1755417046523,-480.0,0.00021068,2]
[379814704,1755417046533,-985.56,0.00021068,2]
[379814706,1755417046542,-480.0,0.00021068,2]
[379814708,1755417046552,-480.0,0.00021068,2]
[379814710,1755417046561,-2359.64362928,0.00021068,2]
[379814715,1755417046592,-480.0,0.00019698,2]
[379814716,1755417046602,-539.71637072,0.00021068,2]
[379814718,1755417046611,-225.37535172,0.00021068,2]
[379814824,1755417047650,-254.62464828,0.00021068,2]
[379814826,1755417047659,-142.17599819,0.00021068,2]
[379814828,1755417047671,-337.82400181,0.00021068,2]
[379814830,1755417047680,-699.87,0.00021068,2]
[379814832,1755417047689,-480.0,0.00021068,2]
[379814834,1755417047697,-522.58,0.00021069,2]
[379814836,1755417047707,-480.0,0.00021069,2]
[379814837,1755417047717,-2656.68271722,0.00021069,2]
[379814840,1755417047728,-360.43326267,0.00021069,2]
[379814873,1755417048039,-480.0,0.00019698,2]
[379814875,1755417048048,-55.9915868,0.00019799,2]
[379814879,1755417048085,-424.0084132,0.00019799,2]
[379814881,1755417048094,-20.11778728,0.00020073,2]
[379814887,1755417048137,-308.94656371,0.00020073,2]
[379814888,1755417048147,-1132.57,0.00020245,2]
[379814890,1755417048156,-1132.57,0.00020519,2]
[379814892,1755417048166,-1132.57,0.00020793,2]
[379814894,1755417048175,-1132.57,0.00021067,2]
[379814896,1755417048185,-2211.87681612,0.00021069,2]
[379816113,1755417183066,500.0,0.00018538,2]
[379816114,1755417222087,5000.0,0.00019178,2]
[379816115,1755417222264,1361.31382962,0.00019178,2]
[379816116,1755417222289,3638.68617038,0.00019178,2]
[379816117,1755417226607,254.95622079,0.00019534,2]
[379816118,1755417259654,367.13695792,0.00019534,2]
[379816119,1755417265743,185.29952866,0.00019255,2]
[379816121,1755417319177,304.35586385,0.000189,2]
[379816122,1755417355739,1333.61844594,0.00019498,2]
[379816123,1755417417483,13915.94681246,0.00018629,2]
[379816124,1755417417508,20000.0,0.00018629,2]
[379816125,1755417417533,20000.0,0.00018629,2]
[379816126,1755417417557,20000.0,0.00018629,2]
[379816127,1755417417581,18597.54267284,0.00018629,2]
[379816128,1755417425492,326.34396256,0.00019498,2]
[379816129,1755417437230,500.0,0.00018538,2]
[379816130,1755417461397,302.66710251,0.00019089,2]
[379816131,1755417461454,273.44626209,0.00019278,2]
[379816132,1755417461479,29.22084042,0.00019278,2]
[379816133,1755417461631,302.66710251,0.000189,2]
[379816134,1755417461663,302.66710251,0.00019467,2]
[379816135,1755417464529,851.52243635,0.00019534,2]
[379816136,1755417525792,163.17198128,0.00019497,2]
[379816137,1755417559029,163.17198128,0.00019497,2]
[379816138,1755417571206,10000.0,0.00018644,2]
[379816139,1755417572763,-180.18728878,0.00019589,3]
[379816140,1755417575251,-86.03271122,0.00019589,3]
[379816142,1755417581639,438.265017,0.00013699,2]
[379816143,1755417610680,-151.0,0.00019587,2]
[379816144,1755417614947,-151.0,0.00019587,2]
[379816145,1755417614972,-67.78571301,0.00019587,2]
[379816146,1755417620835,269.92700068,0.000189,2]
[379816147,1755417622145,-83.21428699,0.00019587,2]
[379816148,1755417622170,-151.0,0.00019587,2]
[379816149,1755417622197,-14.22046239,0.00019587,2]
[379816150,1755417624985,-136.77953761,0.00019587,2]
[379816151,1755417625009,-183.34012979,0.00019587,2]
[379816152,1755417626814,-158.77686135,0.00019587,2]
[379816153,1755417630266,-295.76916828,0.00019587,2]
[379816154,1755417631975,-362.11384058,0.00019587,2]
[379816155,1755417632001,-101.88780968,0.00019587,2]
[379816156,1755417635446,-49.11219032,0.00019587,2]
[379816157,1755417635471,-214.86694944,0.00019587,2]
[379816158,1755417637680,-368.1686374,0.00019587,2]
[379816159,1755417639345,-364.12436747,0.00019587,2]
[379816160,1755417639371,-78.57318661,0.00019587,2]
[379816161,1755417640942,1166.91614018,0.00019497,2]
[379816162,1755417647846,-500.0,0.00019586,2]
[379816163,1755417647873,-66.29712547,0.00019586,2]
[379816164,1755417653038,-317.21816095,0.00019586,2]
[379816165,1755417655424,-116.48471358,0.00019586,2]
[379816166,1755417655448,-118.14632381,0.00019586,2]
[379816167,1755417657058,-381.85367619,0.00019586,2]
[379816168,1755417657082,-41.30986025,0.00019586,2]
[379816169,1755417659697,-171.08030823,0.00019586,2]
[379816170,1755417659722,-52.56291468,0.00019586,2]
[379816171,1755417662124,-224.62131133,0.00019586,2]
[379816172,1755417664925,-300.0,0.00019585,2]
[379816173,1755417664950,-149.09952775,0.00019586,2]
[379816174,1755417667992,-73.71624624,0.00019586,2]
[379816175,1755417668017,-226.28375376,0.00019586,2]
[379816176,1755417672343,-273.71624624,0.00019586,2]
[379816177,1755417672367,-109.5581819,0.00019586,2]
[379816178,1755417675877,-390.4418181,0.00019586,2]
[379816179,1755417675905,-15.19968258,0.00019586,2]
[379816180,1755417679757,-203.2204041,0.00019586,2]
[379816181,1755417682545,-207.86366708,0.00019586,2]
[379816182,1755417721240,161.744528,0.00018596,2]
[379816190,1755417768754,1918.7,0.0002876,120]
[379816194,1755417782283,1267.0,0.000195,2]
[379816198,1755417804778,681.21794908,0.00019534,2]
[379816200,1755417808883,379.79475906,0.00018998,2]
[379816201,1755417809285,189.89737953,0.00019,2]
[379816212,1755417846768,500.0,0.00028767,120]
[379816225,1755417922270,179.95133379,0.000189,2]
[379816227,1755417929145,1021.05162271,0.00019486,2]
[379816248,1755417979846,2431.81282562,0.00019,2]
[379816249,1755417979871,20000.0,0.00019,2]
[379816250,1755417979896,20000.0,0.00019,2]
[379816251,1755417979921,20000.0,0.00019,2]
[379816252,1755417979947,20000.0,0.00019,2]
[379816253,1755417979971,20000.0,0.00019,2]
[379816254,1755417979998,20000.0,0.00019,2]
[379816255,1755417980022,20000.0,0.00019,2]
[379816256,1755417980047,4977.74815713,0.00019,2]
[379816258,1755417981252,1000.0,0.00028767,120]
[379816264,1755417994609,5000.0,0.00019551,2]
[379816271,1755418002830,1802.73699337,0.00019551,2]
[379816277,1755418011108,5000.0,0.00019551,2]
[379816289,1755418028235,3219.5148495,0.00019551,2]
[379816290,1755418028263,1780.4851505,0.00019551,2]
[379816299,1755418042963,150.8627073,0.00019482,2]
[379816300,1755418043353,150.86270728,0.00019483,2]
[379816302,1755418043789,150.86270728,0.00019483,2]
[379816304,1755418045414,5000.0,0.00019551,2]
[379816306,1755418050234,12766.92672764,0.00019482,2]
[379816307,1755418050260,7767.42530486,0.00019482,2]
[379816310,1755418056093,256.0,0.00019317,2]
[379816313,1755418061329,5000.0,0.00019551,2]
[379816319,1755418077399,5000.0,0.00019551,2]
[379816323,1755418079759,500.0,0.00018538,2]
[379816327,1755418093973,1476.57469514,0.00019551,2]
[379816328,1755418094000,3523.42530486,0.00019551,2]
[379816331,1755418109373,5000.0,0.00019551,2]
[379816336,1755418125510,5000.0,0.00019551,2]
[379816341,1755418142475,5000.0,0.00019551,2]
[379816342,1755418145932,544.97435924,0.00019534,2]
[379816350,1755418158752,931.6003359,0.00019551,2]
[379816351,1755418158779,4068.3996641,0.00019551,2]
[379816355,1755418175282,5000.0,0.00019551,2]
[379816357,1755418190800,5000.0,0.00019551,2]
[379816360,1755418206335,5000.0,0.00019551,2]
[379816362,1755418209705,931.6003359,0.00019482,2]
[379816363,1755418209734,80.40755218,0.00019482,2]
[379816365,1755418222267,5000.0,0.00019551,2]
[379816366,1755418223285,169.96755586,0.000189,2]
[379816388,1755418232222,-300.0,0.00019581,2]
[379816390,1755418232232,-173.73041284,0.00019581,2]
[379816392,1755418232244,-1026.26958716,0.00019581,2]
[379816393,1755418232253,-359.7998182,0.00019582,2]
[379816394,1755418232346,-840.2001818,0.00019582,2]
[379816395,1755418232356,-505.08844287,0.00019582,2]
[379816396,1755418232366,-480.0,0.00019582,2]
[379816397,1755418232375,-1217.61,0.00019582,2]
[379816398,1755418232385,-480.0,0.00019582,2]
[379816399,1755418232395,-308.45,0.00019582,2]
[379816400,1755418232404,-500.0,0.00019582,2]
[379816401,1755418232414,-376.66146653,0.00019582,2]
[379816402,1755418232423,-500.0,0.00019582,2]
[379816403,1755418232432,-279.10238686,0.00019582,2]
[379816404,1755418232443,-220.89761314,0.00019582,2]
[379816405,1755418232453,-415.27258888,0.00019582,2]
[379816407,1755418232462,-105.37395649,0.00019582,2]
[379816408,1755418232474,-394.62604351,0.00019582,2]
[379816409,1755418232483,-500.0,0.00019582,2]
[379816410,1755418232492,-500.0,0.00019582,2]
[379816411,1755418232502,-500.0,0.00019582,2]
[379816412,1755418232511,-193.46278357,0.00019582,2]
[379816413,1755418232521,-500.0,0.00019582,2]
[379816414,1755418232531,-500.0,0.00019582,2]
[379816415,1755418232540,-500.0,0.00019582,2]
[379816416,1755418232549,-500.0,0.00019582,2]
[379816417,1755418232559,-449.13710511,0.00019582,2]
[379816419,1755418232568,-500.0,0.00019582,2]
[379816420,1755418232578,-442.76139901,0.00019582,2]
[379816421,1755418232587,-500.0,0.00019582,2]
[379816422,1755418232597,-500.0,0.00019582,2]
[379816423,1755418232607,-500.0,0.00019582,2]
[379816424,1755418232616,-448.42467927,0.00019582,2]
[379816425,1755418232626,-500.0,0.00019582,2]
[379816426,1755418232635,-500.0,0.00019582,2]
[379816427,1755418232644,-500.0,0.00019582,2]
[379816428,1755418232654,-500.0,0.00019582,2]
[379816429,1755418232663,-500.0,0.00019582,2]
[379816430,1755418232673,-500.0,0.00019582,2]
[379816431,1755418232682,-500.0,0.00019582,2]
[379816432,1755418232691,-500.0,0.00019582,2]
[379816433,1755418232700,-500.0,0.00019582,2]
[379816434,1755418232709,-500.0,0.00019582,2]
[379816435,1755418232719,-500.0,0.00019582,2]
[379816436,1755418232728,-500.0,0.00019582,2]
[379816437,1755418232738,-512.5155868,0.00019582,2]
[379816438,1755418232747,-500.0,0.00019582,2]
[379816439,1755418232758,-500.0,0.00019582,2]
[379816440,1755418232768,-500.0,0.00019582,2]
[379816441,1755418232779,-500.0,0.00019582,2]
[379816442,1755418232789,-500.0,0.00019582,2]
[379816443,1755418232799,-500.0,0.00019582,2]
[379816444,1755418232809,-500.0,0.00019582,2]
[379816445,1755418232818,-500.0,0.00019582,2]
[379816446,1755418232828,-500.0,0.00019582,2]
[379816447,1755418232837,-500.0,0.00019582,2]
[379816448,1755418232847,-500.0,0.00019582,2]
[379816449,1755418232857,-500.0,0.00019582,2]
[379816450,1755418232866,-500.0,0.00019582,2]
[379816451,1755418232876,-500.0,0.00019582,2]
[379816452,1755418232886,-500.0,0.00019582,2]
[379816453,1755418232895,-500.0,0.00019582,2]
[379816454,1755418232905,-330.92295486,0.00019582,2]
[379816455,1755418232915,-500.0,0.00019582,2]
[379816456,1755418232924,-500.0,0.00019582,2]
[379816457,1755418232934,-500.0,0.00019582,2]
[379816458,1755418232943,-500.0,0.00019582,2]
[379816459,1755418232952,-500.0,0.00019582,2]
[379816460,1755418232961,-500.0,0.00019582,2]
[379816462,1755418232970,-500.0,0.00019582,2]
[379816464,1755418232979,-500.0,0.00019582,2]
[379816466,1755418232989,-945.86,0.00019586,2]
[379816469,1755418232998,-480.0,0.00019586,2]
[379816472,1755418233007,-480.0,0.00019586,2]
[379816475,1755418233016,-480.0,0.00019586,2]
[379816477,1755418233026,-853.27,0.00019586,2]
[379816480,1755418233036,-480.0,0.00019586,2]
[379816484,1755418233046,-1332.74,0.00019586,2]
[379816487,1755418233056,-522.63,0.00019586,2]
[379816488,1755418233066,-853.13,0.00019586,2]
[379816491,1755418233079,-480.0,0.00019586,2]
[379816492,1755418233089,-480.0,0.00019586,2]
[379816495,1755418233100,-480.0,0.00019586,2]
[379816496,1755418233110,-2416.13,0.00019586,2]
[379816498,1755418233121,-480.0,0.00019586,2]
[379816501,1755418233131,-72.40538869,0.00019587,2]
[379816503,1755418233144,-78.59461131,0.00019587,2]
[379816505,1755418233155,-151.0,0.00019587,2]
[379816507,1755418233164,-151.0,0.00019587,2]
[379816509,1755418233174,-151.0,0.00019587,2]
[379816510,1755418233184,-151.0,0.00019587,2]
[379816512,1755418233194,-151.0,0.00019587,2]
[379816514,1755418233204,-151.0,0.00019587,2]
[379816516,1755418233215,-151.0,0.00019587,2]
[379816518,1755418233224,-1277.61257033,0.00019587,2]
[379816564,1755418238406,5000.0,0.00019551,2]
[379816565,1755418238686,-480.0,0.00019582,2]
[379816566,1755418238696,-165.59995964,0.00019587,2]
[379816567,1755418238707,-11007.82627945,0.00019587,2]
[379816568,1755418238719,-691.91240194,0.00019587,2]
[379816710,1755418240473,-0.03884385,0.00019587,2]
[379817103,1755418244299,-514.13,0.00019586,2]
[379817105,1755418244309,-3392.43370112,0.00019587,2]
[379817289,1755418246092,-1307.09869167,0.00019587,2]
[379817291,1755418246101,-151.0,0.00019587,2]
[379817293,1755418246110,-151.0,0.00019587,2]
[379817295,1755418246119,-245.86959066,0.00019587,2]
[379817297,1755418246129,-151.0,0.00019587,2]
[379817299,1755418246138,-152.79782294,0.00019587,2]
[379817301,1755418246147,-338.76,0.00019589,3]
[379817303,1755418246156,-169.38,0.00019589,3]
[379817305,1755418246165,-508.16,0.00019589,3]
[379817306,1755418246175,-480.0,0.00019596,2]
[379817308,1755418246184,-480.0,0.00019596,2]
[379817310,1755418246193,-480.0,0.00019596,2]
[379817312,1755418246203,-480.0,0.00019596,2]
[379817314,1755418246212,-480.0,0.00019596,2]
[379817316,1755418246221,-464.99414224,0.00019596,2]
[379817318,1755418246230,-480.0,0.00019596,2]
[379817320,1755418246239,-480.0,0.00019596,2]
[379817322,1755418246248,-312.89219008,0.00019596,2]
[379817324,1755418246258,-480.0,0.00019596,2]
[379817326,1755418246267,-577.57,0.00019596,2]